Cogmind - Beta 15 @@@ ROGUE MODE // 2025.08.23 @ 03:45:17 Player: Skuld Result: Destroyed by G-47 Trooper with Particle Gun Performance ------------- Evolutions (2) 1000 Regions Visited (3) 600 Robots Destroyed (60) 300 Value Destroyed (1319) 1319 Prototype IDs (0) 0 Alien Tech Used (0) 0 Bonus (0) 0 TOTAL SCORE: 3219 Bonus ------- None Cogmind --------- Core Integrity 0/550 Matter 34/300 Energy 100/100 System Corruption 0% Temperature Cool (9) Movement Core (350) Ox6 Location -8/Materials Parts ------- > --- POWER (1) -------- (None) > --- PROPULSION (4) --- (None) > --- UTILITY (4) ------ Large Storage Unit > --- WEAPON (2) ------- (None) > --- INVENTORY (15) --- Light Ion Engine Light Ion Engine Titanium Leg Heat Sink Structural Scanner Trap Scanner Trap Scanner Advanced Visual Processing Unit Sensor Array Targeting Computer Heavy Assault Rifle Heavy Assault Rifle Rocket Launcher Peak State ------------ > --- POWER ------------ Deuterium Engine > --- PROPULSION ------- Wheel Compact Wheel > --- UTILITY ---------- Large Storage Unit Sensor Array Signal Interpreter Backup Plating I > --- WEAPON ----------- Mini Grenade Launcher Mini Grenade Launcher > --- INVENTORY -------- Light Ion Engine Light Ion Engine Titanium Leg Heat Sink Structural Scanner Trap Scanner Trap Scanner Advanced Visual Processing Unit Sensor Array Targeting Computer Heavy Assault Rifle Heavy Assault Rifle Rocket Launcher [Rating: 15] Favorites ----------- Power Light Ion Engine Engine Light Ion Engine Power Core Light Nuclear Core Propulsion Aluminum Leg Leg Aluminum Leg Wheel Wheel Utility Large Storage Unit Device Improved Terrain Scanner Storage Large Storage Unit Processor Signal Interpreter Protection Backup Plating I Weapon Mini Grenade Launcher Ballistic Gun Light Assault Rifle Launcher Mini Grenade Launcher Build | -11 -10 -9 -8 ------- Run | Yrd Mat Mat Mat Slots Evolved 4 | . . 2 2 Power . | . . . . Propulsion 2 | . . 2 . Utility 2 | . . . 2 Weapon . | . . . . Parts Attached 32 | 8 4 14 6 Power 7 | 2 1 3 1 Engine 6 | 2 1 2 1 Core 1 | . . 1 . Reactor . | . . . . Propulsion 8 | 2 . 5 1 Treads . | . . . . Leg 4 | 2 . 2 . Wheel 4 | . . 3 1 Hover . | . . . . Flight . | . . . . Utility 7 | 2 1 . 4 Device 4 | 2 . . 2 Storage 1 | . 1 . . Processor 1 | . . . 1 Hackware . | . . . . Protection 1 | . . . 1 Artifact . | . . . . Weapon 10 | 2 2 6 . Energy Gun . | . . . . Energy Cannon . | . . . . Ballistic Gun 5 | 2 . 3 . Ballistic Cannon . | . . . . Launcher 5 | . 2 3 . Special Weapon . | . . . . Impact Weapon . | . . . . Slashing Weapon . | . . . . Piercing Weapon . | . . . . Special Melee Weapon . | . . . . Unidentified Prototypes . | . . . . Parts Lost 21 | . 3 10 8 Power 4 | . 1 2 1 Propulsion 7 | . . 5 2 Utility 4 | . . 1 3 Weapon 6 | . 2 2 2 Highest Loss Streak 6 | . 3 3 6 To Critical Strikes . | . . . . Average Backups 9 | . 4 12 12 Power . | . . 1 1 Propulsion . | . 1 . . Utility 5 | . 2 7 6 Weapon 3 | . . 4 3 Tool/Special . | . . . . Unused Backups 12 | . . 4 8 Power 1 | . . . 1 Propulsion 1 | . . . 1 Utility 5 | . . . 5 Weapon 5 | . . 4 1 Tool/Special . | . . . . Average Slot Usage (%) 75 | . 94 67 70 Engine 7 | . 9 7 8 Core 1 | . . 3 . Leg 14 | . 28 12 . Wheel 3 | . . 2 11 Device 10 | . 16 8 8 Storage 10 | . 11 11 9 Processor 1 | . . . 8 Protection 1 | . . . 8 Ballistic Gun 11 | . 17 11 . Launcher 10 | . 10 9 15 Peak Build Rating 15 | 9 9 14 15 Average Rating 10 | 4 8 11 12 On Entrance 6 | . 9 9 9 Naked Turns . | . . . . Heaviest Build 33 | 8 30 32 33 Greatest Support 36 | 20 20 36 26 Greatest Overweight (x) 8 | . 1 8 6 Average Overweight (x) 1 | . . 1 1 Largest Inventory Capacity 15 | 5 15 15 15 Average Capacity 13 | 5 13 15 15 Most Carried 15 | 1 7 15 13 Average Carried 9 | . 4 12 12 Final Capacity 15 | 5 15 15 15 Final Carried 13 | 1 5 12 13 Class Distribution -------------------- 86% | Mutant 13% | Scavenger-Mutant Dominant Class ---------------- Mutant | -10/Materials Mutant | -9/Materials Mutant | -8/Materials Resources | -11 -10 -9 -8 ----------- Run | Yrd Mat Mat Mat Matter Collected 1110 | 324 145 621 20 Remotely . | . . . . Salvage Created 1386 | 70 229 803 284 Parts 110 | 10 30 47 23 Haulers Intercepted 1 | . . 1 . Recyclers Shooed 2 | . . 2 . Parts Field Recycled . | . . . . Retrieved Matter . | . . . . Parts Self-Destructed . | . . . . Prevented . | . . . . Kills | -11 -10 -9 -8 ------- Run | Yrd Mat Mat Mat Combat Hostiles Destroyed 28 | 1 8 14 5 Guns 13 | 1 5 7 . AOE 15 | . 3 7 5 Classes Destroyed 12 | 3 3 5 1 Worker 8 | 1 . 7 . Builder 10 | . 5 . 5 Tunneler 3 | 2 . 1 . Hauler 1 | . . 1 . Recycler 3 | . . 3 . Mechanic 1 | . . 1 . Watcher 6 | . 3 3 . Swarmer 5 | . 5 . . Grunt 12 | 1 3 5 3 Brawler 1 | . . . 1 Duelist 1 | . . 1 . Sentry 9 | . . 8 1 Best Kill Streak 8 | 4 3 4 8 Combat Bots Only 5 | 1 3 3 5 Max Kills in Single Turn 5 | 1 3 3 5 Gunslinging 1 | . 1 . . Exploded 3 | . 2 1 3 Melee . | . . . . Uniques/NPCs Destroyed . | . . . . Combat | -11 -10 -9 -8 -------- Run | Yrd Mat Mat Mat Hostile Shots Fired 245 | 6 40 106 93 Missed 79 | 2 14 31 32 Hits 166 | 4 26 75 61 Melee 4 | . . 3 1 Projectile 162 | 4 26 72 60 Critical Strikes 5 | . . 4 1 Damage Taken 2546 | 44 341 1157 1004 Core 954 | 10 37 356 551 Absorbed by Shields . | . . . . Core Remaining (%) 62 | 96 81 11 . Volleys Fired 104 | 14 20 67 3 Largest 2 | 2 2 2 2 Hottest 60 | 40 60 60 60 Shots Fired 196 | 28 40 124 4 Gun 120 | 28 14 78 . Cannon . | . . . . Launcher 76 | . 26 46 4 Special . | . . . . Kinetic 120 | 28 14 78 . Thermal . | . . . . Explosive 76 | . 26 46 4 Electromagnetic . | . . . . Robot Hit Streak 10 | 5 5 10 2 Robot Miss Streak 4 | 4 2 3 . Penetration Max . | . . . . Secondary Targets 2 | . 1 1 . Max Gunslinging Chain 1 | . 1 1 . Shots Hit Robots 95 | 15 10 69 1 Core Hits 110 | 6 22 65 17 Critical Kills . | . . . . Critical Parts Destroyed . | . . . . Critical Strikes . | . . . . Melee Attacks . | . . . . Impact . | . . . . Slashing . | . . . . Piercing . | . . . . Sneak Attacks . | . . . . Combat Hostiles . | . . . . Follow-up Attacks . | . . . . Damage Inflicted 3365 | 167 665 1856 677 Guns 786 | 167 70 549 . Cannons . | . . . . Explosions 2568 | . 595 1307 666 Melee . | . . . . Ramming 11 | . . . 11 Kinetic 786 | 167 70 549 . Thermal 63 | . . 63 . Explosive 2505 | . 595 1244 666 Electromagnetic . | . . . . Impact . | . . . . Slashing . | . . . . Piercing . | . . . . Highest Corruption 2 | . 2 . . Average Corruption 2 | . 2 . . Corruption Purged . | . . . . Corruption Blocked . | . . . . Effects 5 | . 5 . . Message Errors 1 | . 1 . . Matter Fused 3 | . 3 . . Heat Flow Errors 1 | . 1 . . Overload Shots . | . . . . Overflow Damage 70 | . 38 32 . Projectiles . | . . . . Explosions 70 | . 38 32 . Melee . | . . . . Knockbacks . | . . . . Impact . | . . . . Kinetic . | . . . . Secondary . | . . . . Self-Inflicted Damage 150 | . 129 16 5 Shots 8 | . 4 4 . Rammed 3 | . . . 3 Targets Rammed 3 | . . . 3 Kicked . | . . . . Crushed . | . . . . Highest Temperature 285 | 6 285 27 20 Average Temperature 35 | 6 124 10 8 Received Heat Transfer 945 | 24 15 429 477 Siege Activations . | . . . . Martial Activations . | . . . . Shielding Activations . | . . . . Robots Disrupted . | . . . . Combat Hostiles . | . . . . Robots Corrupted . | . . . . Combat Hostiles . | . . . . Parts Fried . | . . . . Impact Corruptions . | . . . . Robots Melted . | . . . . Combat Hostiles . | . . . . Parts Melted . | . . . . Heat Transferred 50 | . . 50 . Parts Sabotaged . | . . . . Parts Stolen . | . . . . Parts Stripped . | . . . . Power Chain Reactions . | . . . . Alert | -11 -10 -9 -8 ------- Run | Yrd Mat Mat Mat Maximum Alert Level 1 | . 1 1 . Low Security (%) 87 | 100 83 85 100 Level 1 12 | . 16 14 . Level 2 . | . . . . Level 3 . | . . . . Level 4 . | . . . . Level 5 . | . . . . High Security . | . . . . Max Security . | . . . . Peak Influence 271 | 25 230 271 122 Initial 107 | . . 79 107 Average 90 | 6 112 102 43 Influence Increases 1417 | 35 450 750 182 Destroy 0b10 Robot/C 560 | 20 160 280 100 Destroy 0b10 Robot/NC 160 | 15 40 80 25 Destroy Leader 174 | . 46 108 20 Successful Hack 22 | . . 13 9 Disable Machine 150 | . 75 75 . Destroy Structure 291 | . 129 149 13 Lose Combat Pursuer 60 | . . 45 15 Influence Decreases 1305 | 35 260 685 325 Entered New Map 259 | . . 111 148 Time Decay 879 | 35 230 484 130 Lost Part 167 | . 30 90 47 Squads Dispatched 3 | . 1 . 2 Investigation . | . . . . Extermination . | . . . . Reinforcement 3 | . 1 . 2 Assault . | . . . . Garrison . | . . . . Intercept . | . . . . Searches Triggered . | . . . . Construction Impeded . | . . . . Haulers Reinforced . | . . . . Active Scanning Responses . | . . . . Cargo Convoy Interrupts . | . . . . Stealth | -11 -10 -9 -8 --------- Run | Yrd Mat Mat Mat Distress Signals 7 | . 1 2 4 Communications Jammed . | . . . . Distress Signals . | . . . . Times Spotted 54 | 1 15 22 16 Peak Tracking Total 15 | 1 5 4 15 Tactical Retreats 3 | . . 2 1 Traps | -11 -10 -9 -8 ------- Run | Yrd Mat Mat Mat Traps Triggered . | . . . . Indirectly . | . . . . Trap Hack Attempts . | . . . . Triggered . | . . . . Disarmed . | . . . . Reprogrammed . | . . . . Reused . | . . . . Traps Extracted . | . . . . Installed . | . . . . Triggered . | . . . . Machines | -11 -10 -9 -8 ---------- Run | Yrd Mat Mat Mat Machines Disabled 10 | . 5 5 . Max in Single Turn 2 | . 2 1 . Machines Repaired . | . . . . Machines Dismantled . | . . . . Machines Sabotaged . | . . . . Overloaded Fab Kills . | . . . . Hacking | -11 -10 -9 -8 --------- Run | Yrd Mat Mat Mat Machines Accessed 10 | . 3 6 1 Terminals 8 | . 3 4 1 Fabricators . | . . . . Repair Stations 1 | . . 1 . Recycling Units 1 | . . 1 . Scanalyzers . | . . . . Garrison Access . | . . . . Total Hacks 23 | . 7 14 2 Successful 7 | . . 6 1 Failed 16 | . 7 8 1 Catastrophic 6 | . 4 2 . Database Lockouts . | . . . . Manual 15 | . 5 9 1 Terminals 19 | . 7 10 2 Fabricators . | . . . . Repair Stations 1 | . . 1 . Recycling Units 3 | . . 3 . Scanalyzers . | . . . . Garrison Access . | . . . . Terminal Hacks 3 | . . 2 1 Record 1 | . . 1 . Part Schematic 1 | . . 1 . Level Access Points 1 | . . . 1 Fabricator Hacks . | . . . . Repair Station Hacks 1 | . . 1 . Refit 1 | . . 1 . Recycling Unit Hacks 3 | . . 3 . Retrieve Matter 2 | . . 2 . Retrieve Components 1 | . . 1 . Scanalyzer . | . . . . Garrison Access Hacks . | . . . . Unauthorized Hacks . | . . . . Terminals . | . . . . Fabricators . | . . . . Repair Stations . | . . . . Recycling Units . | . . . . Scanalyzers . | . . . . Garrison Access . | . . . . Data Cores Recovered . | . . . . Used . | . . . . Hacking Detections 8 | . 3 4 1 Full Trace Events 1 | . 1 . . Feedback Events . | . . . . Feedback Blocked . | . . . . Robot Schematics Acquired . | . . . . Robots Built . | . . . . Authchips . | . . . . Time . | . . . . Total Robot Build Rating . | . . . . Part Schematics Acquired 1 | . . 1 . Parts Built . | . . . . Authchips . | . . . . Time . | . . . . Total Part Build Rating . | . . . . Parts Repaired . | . . . . Time . | . . . . Parts Recycled . | . . . . Recycled Matter . | . . . . Retrieved Matter 91 | . . 91 . Retrieved Components 10 | . . 10 . Parts Scanalyzed . | . . . . Part Schematics Acquired . | . . . . Parts Damaged . | . . . . Bothacking | -11 -10 -9 -8 ------------ Run | Yrd Mat Mat Mat Used RIF Installer . | . . . . Robots Hacked . | . . . . Non-combat . | . . . . Combat . | . . . . Robot Hacks Applied . | . . . . Relay Couplers Released . | . . . . Fabnet Peak Effective % . | . . . . Robots Rewired . | . . . . Allies Hacked . | . . . . Hacks Repelled . | . . . . Allies | -11 -10 -9 -8 -------- Run | Yrd Mat Mat Mat Total Allies . | . . . . Largest Group . | . . . . Highest-Rated Group . | . . . . Highest-Rated Ally . | . . . . Total Orders . | . . . . Ally Attacks . | . . . . Total Damage . | . . . . Kills . | . . . . Allies Corrupted . | . . . . Allies Melted . | . . . . Intel | -11 -10 -9 -8 ------- Run | Yrd Mat Mat Mat Active Infowar (turns) 2092 | 10 688 1042 352 Sensors 350 | . . . 350 Terrain 1740 | 10 688 1042 . Structural 4 | . . . 4 Robot Analysis Total . | . . . . Derelict Logs Recovered . | . . . . Drone Launches . | . . . . Drone Recoveries . | . . . . Exploration | -11 -10 -9 -8 ------------- Run | Yrd Mat Mat Mat Turns Passed 2687 | 190 688 1433 376 Spaces Moved 1382 | 122 352 620 288 Core 76 | 19 . 54 3 Treads . | . . . . Legs 858 | 103 352 403 . Wheels 448 | . . 163 285 Hover . | . . . . Flight . | . . . . Fastest Speed 50 | 50 120 86 105 Average Speed 164 | 109 172 192 117 Slowest Speed 450 | 120 190 450 350 Overloaded Moves . | . . . . Propulsion Burnouts . | . . . . Robots Hopped . | . . . . Potential Cave-ins 1 | . 1 . . Cave-ins Triggered . | . . . . Exploration Rate (%) 30 | 6 48 52 16 Regions Visited 3 Branch Regions . Pre-discovered Areas . | . . . . Known Exits Taken . | . . . . Unknown Exits Taken 3 | 1 1 1 . Scrap Searched . | . . . . Spaces Dug . | . . . . Terrain Destroyed 390 | . 174 195 21 Melee . | . . . . Projectile . | . . . . AOE 390 | . 174 195 21 Terrain Rammed . | . . . . Walls Destroyed . | . . . . Machines Disabled . | . . . . Actions | -11 -10 -9 -8 --------- Run | Yrd Mat Mat Mat Total 1613 | 150 394 747 322 Wait 51 | 5 10 17 19 Move 1379 | 121 351 619 288 Hop . | . . . . Pick Up 28 | 1 6 19 2 Fast Attach 13 | 7 1 4 1 Attach 11 | . 2 6 3 Detach 2 | . . 1 1 Swap 12 | 1 4 5 2 Drop 10 | 1 . 9 . Fire 104 | 14 20 67 3 Melee . | . . . . Ram 3 | . . . 3 Kick . | . . . . Crush . | . . . . Escape Stasis . | . . . . Rewire . | . . . . Trap . | . . . . Miscellaneous . | . . . . Route ------- -11/Scrapyard -10/Materials (discovered 2 exits: *Mat / [*Min]) -9/Materials (discovered 2 exits: *Mat / [*Min]) -8/Materials (discovered 3 exits: Fac x3) History --------- Turn | Location | Event 2 | -11/Scrapyard | Met Revision 17 79 | -11/Scrapyard | Discovered new exit (range 8) 191 | -11/Scrapyard | Entered Materials 323 | -10/Materials | Build established: Mutant 398 | -10/Materials | Discovered new exit (range 14) 638 | -10/Materials | Lost 3 parts (1p2w) 828 | -10/Materials | Discovered new exit (range 7) 879 | -10/Materials | Entered another Materials area 879 | -9/Materials | Evolved 2 slots: Propulsion x2 1229 | -9/Materials | Discovered new exit (range 15) 1341 | -9/Materials | Lost 3 parts (1p1n1w) 1894 | -9/Materials | Core integrity fell below 50% 1952 | -9/Materials | Lost 3 parts (1p1n1u) 2223 | -9/Materials | Core integrity fell below 20% 2260 | -9/Materials | Lost 3 parts (2n1w) 2295 | -9/Materials | Discovered new exit (range 15) 2312 | -9/Materials | Entered another Materials area 2312 | -8/Materials | Evolved 2 slots: Utility x2 2636 | -8/Materials | Identified exit to Factory 2679 | -8/Materials | Core integrity fell below 50% 2685 | -8/Materials | Core integrity fell below 20% 2688 | -8/Materials | Destroyed by G-47 Trooper with Particle Gun Last Messages --------------- ALERT: Hostiles spotted, dispatching reinforcements to Terminal M001. O-16 Technician locks terminal. U-05 Engineer works on Electrolysis Chamber. U-05 Engineer completes Electrolysis Chamber. G-47 Trooper destroyed. Y-45 Defender destroyed. B-36 Bruiser destroyed. U-05 Engineer destroyed. U-05 Engineer lays Concrete. Signal Interpreter destroyed. U-05 Engineer lays Concrete. Wheel destroyed. U-05 Engineer lays Concrete. G-47 Trooper destroyed. U-05 Engineer destroyed. G-47 Trooper destroyed. Mni. Grenade Launcher destroyed. U-05 Engineer lays Concrete. W-25 Informer sends out distress signal. Map ----- +----------------------------------------------------+ | ?????????????????????????????????????????????????? | | ?????????????????????????????????????????????????? | | ?????????????????????????????????????????????????? | | ?????????????????????????????????????????????????? | | ?????????????????????????????????????????????????? | | ?????????????????????????????????????????????????? | | ?????????????????????????????????????????????????? | | ?????????????????????????????????????????????????? | | ?????????????????????????????????????????????????? | | ?????????????????????????????????????????????????? | | ???????????????# ????????????????????????????????? | | ???????????????# ???????????????????????????????? | | ???????????????# ????????????????????#+##??????? | | ???????????????# ########???????????? #??????? | | ???????????????? #???????????# #??????? | | ???????????????#? #???????????/ #??????? | | ???????????????# "" #???????????# #??????? | | ???????????????# "T #???????????# #??????? | | ???????????????# ""o #???????????# #??????? | | ???????????????#w #???????????# #??????? | | ???????????????+ #???????????# #??????? | | ???????????????# #???????????# #??????? | | ???????????????# #??????????## ##?????? | | ???????????????# ############ [#?????? | | ???????????????# # """"" ## #?????? | | ???????????????# =@* """"" + T #?????? | | ???????????????# *!g%%! """"" ## #?????? | | ???????????????# *!=%[ r ## #?????? | | ???????????????# %=! #### ########? | | ?????????? =%[ g #??# # ! #? | | ?????????? gg % !w u #### # !#? | | ?????????? < *g + + #? | | ??????????? <<<% ########### # /// #? | | ??????????? <<<= #?????????# # /// #? | | ???????????? #?????????# #? // #? | | ????????????? #?????????# #?######? | | ??????????????###/####### #?????????# #???????? | | ???????????????? ??????? ?????????# #???????? | | ???????????????????????? ?????????# #???????? | | ???????????????????????? ?????????# #???????? | | ????????????????????????#+#?????????# #???????? | | ????????????????????????????????????# #???????? | | ????????????????????????????????????# #???????? | | ????????????????????????????????????# #??????## | | ????????????????????????????????????# #??????# | | ????????????????????????????????????# ######## | | ????????????????????????????????????# | | ????????????????????????????????????############# | | ????????????????????????????????????????????????# | | ????????????????????????????????????????????????## | +----------------------------------------------------+ Best States ------------- Heat Dissipation 35 Energy Generation 14 Energy Capacity 275 Matter Stores 300 Matter Capacity 300 Sight Range 16 Robot Scan Range 14 Terrain Scan Range 16 Terrain Scan Density 10 Armor Coverage 80 Evasion (%) 55 Item Schematics ----------------- Sensor Array | -9/Materials | Hacked Robot Schematics ------------------ None Fabricated ------------ Nothing Repaired ---------- Nothing Alien Tech Used ----------------- None Achievements -------------- Crack Shot Loot Pinata Novice Programmer Oops Remodeling Uninvited Guest Challenges ------------ None Game ------ Seed LauncherRecyclingJammer Manual? 0 Play Time 00:43:33 Cumulative 1.4 hours Start 2025.08.23 @ 03:03:19 End 2025.08.23 @ 03:45:17 Sessions 1 Manual Loads 0 Difficulty Rogue Special Mode None Game No. 2 Rogue 2 Adventurer 0 Explorer 0 Win Type - Total 0 Types 0/0/0/0/0/0/0/0/0/0 Lore% 0 Gallery% 1 Achievement% 3 Wizard Run 0 Options --------- Layout 1 ASCII 0 Keyboard 1 Movement Arrows Keybinds 0 Fullscreen 1 Font 48/CogWide++ Map View 50x35 Zoom Use 0% Tactical HUD 0 Map Filters NONE Filters NONE Steam 0 RUN: 450f6bb3-9b2a-4a00-bcdd-8d3230fb0af7